[Event "*** Qualifier 1: Titled Tuesday 3|2 Blitz"]
[Site "Chess.com"]
[Date "2017.04.04"]
[Round "7"]
[White "Swarajan"]
[Black "FearlessKing64"]
[Result "1-0"]
[WhiteElo "2010"]
[BlackElo "2109"]
[TimeControl "180+2"]
[EndTime "14:41:57 PDT"]
[Termination "Swarajan won by resignation"]

1. d4 {[%clk 0:03:02]} 1... Nf6 {[%clk 0:03:00.6]} 2. c4 {[%clk 0:03:03.1]} 2...
g6 {[%clk 0:03:02]} 3. Nc3 {[%clk 0:03:02.9]} 3... d5 {[%clk 0:03:03.3]} 4. cxd5
{[%clk 0:03:03.4]} 4... Nxd5 {[%clk 0:03:05.2]} 5. e4 {[%clk 0:03:04.5]} 5...
Nxc3 {[%clk 0:03:06.6]} 6. bxc3 {[%clk 0:03:05.1]} 6... Bg7 {[%clk 0:03:08.3]}
7. Bc4 {[%clk 0:03:06.8]} 7... c5 {[%clk 0:03:09.7]} 8. Ne2 {[%clk 0:03:07.9]}
8... Nc6 {[%clk 0:03:10.6]} 9. Be3 {[%clk 0:03:04.4]} 9... O-O {[%clk
0:03:10.3]} 10. O-O {[%clk 0:03:03.4]} 10... Bg4 {[%clk 0:03:11.8]} 11. f3
{[%clk 0:03:04]} 11... Na5 {[%clk 0:03:11.5]} 12. Bd3 {[%clk 0:03:04]} 12...
cxd4 {[%clk 0:03:11.7]} 13. cxd4 {[%clk 0:03:04.5]} 13... Be6 {[%clk 0:03:13.4]}
14. Rc1 {[%clk 0:03:04.1]} 14... Bxa2 {[%clk 0:03:12.4]} 15. Qa4 {[%clk
0:03:04.9]} 15... Bb3 {[%clk 0:03:13.3]} 16. Qa3 {[%clk 0:03:05.7]} 16... Be6
{[%clk 0:03:07.9]} 17. d5 {[%clk 0:03:05.3]} 17... Bd7 {[%clk 0:03:01.1]} 18.
Rfd1 {[%clk 0:03:03.6]} 18... b5 {[%clk 0:02:39]} 19. Nd4 {[%clk 0:02:53.2]}
19... a6 {[%clk 0:02:26]} 20. Nc6 {[%clk 0:02:52.6]} 20... Bxc6 {[%clk
0:02:11.3]} 21. dxc6 {[%clk 0:02:52.9]} 21... Qc7 {[%clk 0:02:12.8]} 22. Be2
{[%clk 0:02:49.3]} 22... Rfd8 {[%clk 0:02:09.2]} 23. Rd7 {[%clk 0:02:36]} 23...
Rxd7 {[%clk 0:01:59]} 24. cxd7 {[%clk 0:02:36.2]} 24... Qd8 {[%clk 0:01:55.9]}
25. Rc8 {[%clk 0:02:21]} 25... Rxc8 {[%clk 0:01:55.9]} 26. dxc8=Q {[%clk
0:02:21.8]} 26... Qxc8 {[%clk 0:01:57.6]} 27. Qxa5 {[%clk 0:02:22.8]} 27... h5
{[%clk 0:01:50.4]} 28. Qb4 {[%clk 0:02:15.6]} 28... e6 {[%clk 0:01:34.2]} 29.
Kf2 {[%clk 0:01:44.2]} 29... Qc7 {[%clk 0:01:17.7]} 30. g3 {[%clk 0:01:39.4]}
30... h4 {[%clk 0:01:19]} 31. Bf4 {[%clk 0:01:22.6]} 31... Be5 {[%clk
0:01:01.5]} 32. Bxe5 {[%clk 0:00:51.2]} 32... Qxe5 {[%clk 0:01:03.4]} 33. f4
{[%clk 0:00:51.5]} 33... Qc7 {[%clk 0:00:56.5]} 34. Qd4 {[%clk 0:00:44.1]} 34...
Qc6 {[%clk 0:00:37.7]} 35. gxh4 {[%clk 0:00:41.8]} 35... a5 {[%clk 0:00:35.7]}
36. Qd8+ {[%clk 0:00:40.2]} 36... Kg7 {[%clk 0:00:34.4]} 37. Qxa5 {[%clk
0:00:38.9]} 37... Qxe4 {[%clk 0:00:34.4]} 38. Qc3+ {[%clk 0:00:37]} 38... Kh7
{[%clk 0:00:33.2]} 39. Qe5 {[%clk 0:00:37.5]} 39... Qb7 {[%clk 0:00:27.9]} 40.
Bxb5 {[%clk 0:00:34.7]} 40... Qb6+ {[%clk 0:00:28.9]} 41. Kg3 {[%clk 0:00:35]}
41... Qg1+ {[%clk 0:00:27.2]} 42. Kh3 {[%clk 0:00:33.3]} 42... Qf2 {[%clk
0:00:25.1]} 43. Qg5 {[%clk 0:00:31.5]} 43... Qf3+ {[%clk 0:00:20.4]} 44. Qg3
{[%clk 0:00:31.9]} 44... Qd5 {[%clk 0:00:22]} 45. Be2 {[%clk 0:00:32.7]} 45...
Qf5+ {[%clk 0:00:20.4]} 46. Bg4 {[%clk 0:00:33.5]} 46... Qe4 {[%clk 0:00:21.1]}
47. h5 {[%clk 0:00:33.6]} 47... gxh5 {[%clk 0:00:12.6]} 48. Bxh5 {[%clk
0:00:33.6]} 48... Qf5+ {[%clk 0:00:14.2]} 49. Qg4 {[%clk 0:00:32.3]} 49... Qd3+
{[%clk 0:00:13]} 50. Kh4 {[%clk 0:00:33.4]} 50... Qd8+ {[%clk 0:00:14.4]} 51.
Qg5 {[%clk 0:00:33.6]} 51... Qd2 {[%clk 0:00:14.4]} 52. h3 {[%clk 0:00:31]}
52... Qf2+ {[%clk 0:00:14.6]} 53. Qg3 {[%clk 0:00:32]} 53... Qa7 {[%clk
0:00:12.3]} 54. Be2 {[%clk 0:00:22.7]} 54... Qe7+ {[%clk 0:00:10.1]} 55. Qg5
{[%clk 0:00:23.6]} 55... Qc5 {[%clk 0:00:09.5]} 56. Bd3+ {[%clk 0:00:24.6]}
56... Kh8 {[%clk 0:00:10.7]} 57. Qh6+ {[%clk 0:00:25.5]} 57... Kg8 {[%clk
0:00:11.3]} 58. Bh7+ {[%clk 0:00:26.3]} 58... Kh8 {[%clk 0:00:10.2]} 59. Bg6+
{[%clk 0:00:27.5]} 59... Kg8 {[%clk 0:00:11.8]} 60. Qh7+ {[%clk 0:00:28.7]} 1-0

[Event "*** Qualifier 1: Titled Tuesday 3|2 Blitz"]
[Site "Chess.com"]
[Date "2017.04.04"]
[Round "7"]
[White "TheLancer"]
[Black "joppie2"]
[Result "1-0"]
[WhiteElo "2489"]
[BlackElo "2596"]
[TimeControl "180+2"]
[EndTime "14:42:11 PDT"]
[Termination "TheLancer won on time"]

1. e4 {[%clk 0:03:02]} 1... e5 {[%clk 0:03:01.6]} 2. Nf3 {[%clk 0:03:02.5]} 2...
Nc6 {[%clk 0:03:03.1]} 3. Bb5 {[%clk 0:03:04.1]} 3... g6 {[%clk 0:03:04.7]} 4.
O-O {[%clk 0:03:04.4]} 4... Bg7 {[%clk 0:03:06]} 5. c3 {[%clk 0:03:05.5]} 5...
d6 {[%clk 0:03:07.1]} 6. d4 {[%clk 0:03:06]} 6... Bd7 {[%clk 0:03:08.8]} 7. h3
{[%clk 0:03:04.8]} 7... Nf6 {[%clk 0:03:09.9]} 8. Bg5 {[%clk 0:02:58.8]} 8...
O-O {[%clk 0:03:07.6]} 9. Nbd2 {[%clk 0:02:45.8]} 9... Nxd4 {[%clk 0:03:08.4]}
10. Bxd7 {[%clk 0:02:41.9]} 10... Nxf3+ {[%clk 0:03:06.4]} 11. Qxf3 {[%clk
0:02:43]} 11... h6 {[%clk 0:03:03.3]} 12. Bxf6 {[%clk 0:02:40.2]} 12... Bxf6
{[%clk 0:03:05.2]} 13. Ba4 {[%clk 0:02:39.7]} 13... Kg7 {[%clk 0:03:06.2]} 14.
Rad1 {[%clk 0:02:37.1]} 14... Qe7 {[%clk 0:03:07.5]} 15. Bb3 {[%clk 0:02:38.1]}
15... Rad8 {[%clk 0:03:06.1]} 16. Nc4 {[%clk 0:02:39.5]} 16... h5 {[%clk
0:03:01]} 17. Ne3 {[%clk 0:02:40.1]} 17... c6 {[%clk 0:03:02.3]} 18. g3 {[%clk
0:02:37.6]} 18... Bg5 {[%clk 0:03:03.6]} 19. h4 {[%clk 0:02:35.8]} 19... Bh6
{[%clk 0:03:04.9]} 20. Kg2 {[%clk 0:02:36.4]} 20... a6 {[%clk 0:02:53.7]} 21.
Rd3 {[%clk 0:02:34]} 21... f5 {[%clk 0:02:49.8]} 22. Nc4 {[%clk 0:01:48.8]}
22... d5 {[%clk 0:02:45.3]} 23. Rdd1 {[%clk 0:00:50.6]} 23... fxe4 {[%clk
0:02:37.6]} 24. Qe2 {[%clk 0:00:49.9]} 24... dxc4 {[%clk 0:02:18.5]} 25. Bxc4
{[%clk 0:00:49.7]} 25... e3 {[%clk 0:01:40.4]} 26. fxe3 {[%clk 0:00:48.7]} 26...
Rxd1 {[%clk 0:01:35.6]} 27. Rxd1 {[%clk 0:00:45.4]} 27... Qc5 {[%clk 0:01:36.6]}
28. Rd7+ {[%clk 0:00:38.7]} 28... Kh8 {[%clk 0:01:37.5]} 29. Qd3 {[%clk
0:00:28.5]} 29... Qxe3 {[%clk 0:01:29.4]} 30. Qxe3 {[%clk 0:00:24.6]} 30... Bxe3
{[%clk 0:01:31.3]} 31. Rf7 {[%clk 0:00:15.8]} 31... Rd8 {[%clk 0:01:13.4]} 32.
Rxb7 {[%clk 0:00:14]} 32... e4 {[%clk 0:01:14.3]} 33. Kf1 {[%clk 0:00:11.3]}
33... Bc5 {[%clk 0:01:08.4]} 34. Be2 {[%clk 0:00:10.2]} 34... Rf8+ {[%clk
0:01:08.6]} 35. Ke1 {[%clk 0:00:11.1]} 35... Bf2+ {[%clk 0:01:09.9]} 36. Kd1
{[%clk 0:00:12.3]} 36... Bxg3 {[%clk 0:01:10]} 37. Rb6 {[%clk 0:00:12.1]} 37...
Rd8+ {[%clk 0:01:05.9]} 38. Kc2 {[%clk 0:00:12.7]} 38... Bf4 {[%clk 0:01:07.5]}
39. Bxa6 {[%clk 0:00:09.8]} 39... Rd6 {[%clk 0:01:00]} 40. Bc4 {[%clk
0:00:09.5]} 40... e3 {[%clk 0:00:54.6]} 41. a4 {[%clk 0:00:10.7]} 41... e2
{[%clk 0:00:55.4]} 42. Rb8+ {[%clk 0:00:08.4]} 42... Kg7 {[%clk 0:00:55.5]} 43.
Re8 {[%clk 0:00:09.7]} 43... Bg3 {[%clk 0:00:45.4]} 44. Rxe2 {[%clk 0:00:10.5]}
44... Bxh4 {[%clk 0:00:46.8]} 45. a5 {[%clk 0:00:12]} 45... Bd8 {[%clk
0:00:40.9]} 46. b4 {[%clk 0:00:12.4]} 46... h4 {[%clk 0:00:41.5]} 47. Be6 {[%clk
0:00:12.3]} 47... Kh6 {[%clk 0:00:39.6]} 48. a6 {[%clk 0:00:13]} 48... Bb6
{[%clk 0:00:39.8]} 49. Bh3 {[%clk 0:00:12.9]} 49... Rf6 {[%clk 0:00:39.3]} 50.
Kb3 {[%clk 0:00:13.2]} 50... Rf3 {[%clk 0:00:40.1]} 51. Be6 {[%clk 0:00:13.4]}
51... Bd4 {[%clk 0:00:34.8]} 52. Rc2 {[%clk 0:00:13.8]} 52... g5 {[%clk
0:00:32.7]} 53. Kc4 {[%clk 0:00:14.8]} 53... Bb6 {[%clk 0:00:33]} 54. Bd7 {[%clk
0:00:15.8]} 54... g4 {[%clk 0:00:33.9]} 55. Bxc6 {[%clk 0:00:16.5]} 55... Rf5
{[%clk 0:00:22.1]} 56. Re2 {[%clk 0:00:13.3]} 56... h3 {[%clk 0:00:21.8]} 57.
Bd7 {[%clk 0:00:13.9]} 57... Rf4+ {[%clk 0:00:22.5]} 58. Kb5 {[%clk 0:00:15.2]}
58... Bg1 {[%clk 0:00:22.6]} 59. c4 {[%clk 0:00:14.2]} 59... g3 {[%clk
0:00:21.3]} 60. Bc6 {[%clk 0:00:15]} 60... Bf2 {[%clk 0:00:20.6]} 61. c5 {[%clk
0:00:14.8]} 61... g2 {[%clk 0:00:21.9]} 62. a7 {[%clk 0:00:15.5]} 1-0

[Event "*** Qualifier 1: Titled Tuesday 3|2 Blitz"]
[Site "Chess.com"]
[Date "2017.04.04"]
[Round "7"]
[White "GamayevOleg"]
[Black "VladDobrov"]
[Result "1-0"]
[WhiteElo "2419"]
[BlackElo "2504"]
[TimeControl "180+2"]
[EndTime "14:42:11 PDT"]
[Termination "GamayevOleg won on time"]

1. d3 {[%clk 0:03:01.2]} 1... a5 {[%clk 0:02:57.7]} 2. e4 {[%clk 0:03:03.1]}
2... a4 {[%clk 0:02:56.6]} 3. c3 {[%clk 0:03:03.4]} 3... e6 {[%clk 0:02:57]} 4.
Nf3 {[%clk 0:03:04]} 4... d5 {[%clk 0:02:58.4]} 5. Be2 {[%clk 0:03:04.3]} 5...
c5 {[%clk 0:02:55.8]} 6. Nbd2 {[%clk 0:03:02.9]} 6... a3 {[%clk 0:02:55.3]} 7.
bxa3 {[%clk 0:03:00.3]} 7... Nc6 {[%clk 0:02:54.7]} 8. O-O {[%clk 0:03:00.7]}
8... Nf6 {[%clk 0:02:54.9]} 9. Re1 {[%clk 0:03:00.5]} 9... Be7 {[%clk
0:02:55.4]} 10. Qc2 {[%clk 0:03:01.2]} 10... O-O {[%clk 0:02:55.8]} 11. Bb2
{[%clk 0:03:01.8]} 11... b6 {[%clk 0:02:53.9]} 12. Rad1 {[%clk 0:03:02.5]} 12...
Qc7 {[%clk 0:02:53.2]} 13. Bf1 {[%clk 0:03:02]} 13... Bb7 {[%clk 0:02:50.9]} 14.
c4 {[%clk 0:02:58.8]} 14... d4 {[%clk 0:02:49.8]} 15. g3 {[%clk 0:02:57.4]}
15... Nd7 {[%clk 0:02:45.4]} 16. Bg2 {[%clk 0:02:58.3]} 16... g6 {[%clk
0:02:40.1]} 17. Rb1 {[%clk 0:02:58.6]} 17... e5 {[%clk 0:02:38.1]} 18. Bc1
{[%clk 0:02:59.8]} 18... f5 {[%clk 0:02:30.3]} 19. exf5 {[%clk 0:02:59.5]} 19...
gxf5 {[%clk 0:02:30.4]} 20. Nf1 {[%clk 0:02:52.9]} 20... Kh8 {[%clk 0:02:12]}
21. Bg5 {[%clk 0:02:51.4]} 21... Bd6 {[%clk 0:01:52.5]} 22. Nh4 {[%clk
0:02:51.8]} 22... Rg8 {[%clk 0:01:30.2]} 23. Bc1 {[%clk 0:02:50.1]} 23... Raf8
{[%clk 0:01:28]} 24. Bd5 {[%clk 0:02:50.1]} 24... Rg4 {[%clk 0:01:26.7]} 25. Ng2
{[%clk 0:02:30.7]} 25... e4 {[%clk 0:01:27.3]} 26. dxe4 {[%clk 0:02:28.1]} 26...
Nce5 {[%clk 0:01:28.1]} 27. Nd2 {[%clk 0:02:09.8]} 27... fxe4 {[%clk 0:01:24.8]}
28. Bxe4 {[%clk 0:01:54.1]} 28... d3 {[%clk 0:01:05.7]} 29. Qc3 {[%clk
0:01:30.7]} 29... Rxe4 {[%clk 0:00:55.4]} 30. Rxe4 {[%clk 0:01:26.9]} 30... Nf6
{[%clk 0:00:56.1]} 31. Rf4 {[%clk 0:00:56]} 31... Ned7 {[%clk 0:00:56.4]} 32.
Qxd3 {[%clk 0:00:45.2]} 32... Qc6 {[%clk 0:00:53.8]} 33. f3 {[%clk 0:00:41.6]}
33... Bxf4 {[%clk 0:00:54.4]} 34. Nxf4 {[%clk 0:00:43.5]} 34... Ne5 {[%clk
0:00:55.2]} 35. Qe2 {[%clk 0:00:40.7]} 35... Re8 {[%clk 0:00:54.6]} 36. Bb2
{[%clk 0:00:37.5]} 36... Nfd7 {[%clk 0:00:54.8]} 37. Nd5 {[%clk 0:00:37.2]}
37... Qg6 {[%clk 0:00:52.7]} 38. f4 {[%clk 0:00:33]} 38... Kg8 {[%clk
0:00:30.2]} 39. Bxe5 {[%clk 0:00:31.3]} 39... b5 {[%clk 0:00:32.1]} 40. Re1
{[%clk 0:00:28.7]} 40... bxc4 {[%clk 0:00:32.5]} 41. Qxc4 {[%clk 0:00:27.4]}
41... Qf7 {[%clk 0:00:33.5]} 42. Ne3 {[%clk 0:00:22]} 42... Re6 {[%clk
0:00:33.6]} 43. Ne4 {[%clk 0:00:16.6]} 43... h6 {[%clk 0:00:34.8]} 44. Nd6
{[%clk 0:00:17]} 44... Qe7 {[%clk 0:00:33.9]} 45. Ndf5 {[%clk 0:00:17.3]} 45...
Qf7 {[%clk 0:00:33.9]} 46. Nxh6+ {[%clk 0:00:14.5]} 46... Rxh6 {[%clk
0:00:33.7]} 47. Qxf7+ {[%clk 0:00:15.7]} 47... Kxf7 {[%clk 0:00:35.6]} 48. Nf5
{[%clk 0:00:17.3]} 48... Ra6 {[%clk 0:00:34.9]} 49. Nd6+ {[%clk 0:00:18.5]}
49... Ke6 {[%clk 0:00:35.6]} 50. Nxb7 {[%clk 0:00:20]} 50... Kd5 {[%clk
0:00:34.6]} 51. Rd1+ {[%clk 0:00:19.3]} 51... Kc6 {[%clk 0:00:35.7]} 52. Nd8+
{[%clk 0:00:18.2]} 52... Kb5 {[%clk 0:00:36.6]} 53. Rxd7 {[%clk 0:00:19.4]}
53... Rxa3 {[%clk 0:00:38.5]} 54. Rb7+ {[%clk 0:00:19.7]} 54... Kc4 {[%clk
0:00:38.1]} 55. Rc7 {[%clk 0:00:20.5]} 55... Rxa2 {[%clk 0:00:39.1]} 56. Ne6
{[%clk 0:00:21.4]} 56... Kd5 {[%clk 0:00:41]} 57. Nxc5 {[%clk 0:00:21.5]} 57...
Kc4 {[%clk 0:00:29.5]} 58. Ne4+ {[%clk 0:00:17.4]} 58... Kd3 {[%clk 0:00:31.4]}
59. Nf2+ {[%clk 0:00:18.8]} 59... Ke2 {[%clk 0:00:27.8]} 60. Kg2 {[%clk
0:00:19.5]} 60... Rd2 {[%clk 0:00:25.2]} 61. Rb7 {[%clk 0:00:18.7]} 61... Ke1
{[%clk 0:00:24.1]} 62. Rb1+ {[%clk 0:00:19.5]} 62... Ke2 {[%clk 0:00:24.6]} 63.
Rb2 {[%clk 0:00:21.1]} 1-0

[Event "*** Qualifier 1: Titled Tuesday 3|2 Blitz"]
[Site "Chess.com"]
[Date "2017.04.04"]
[Round "7"]
[White "Marcus_Harvey"]
[Black "oggy1984"]
[Result "1/2-1/2"]
[WhiteElo "2471"]
[BlackElo "2322"]
[TimeControl "180+2"]
[EndTime "14:42:36 PDT"]
[Termination "Game drawn by repetition"]

1. Nf3 {[%clk 0:03:02]} 1... Nf6 {[%clk 0:03:00.2]} 2. b3 {[%clk 0:03:03.3]}
2... a5 {[%clk 0:02:57.5]} 3. Bb2 {[%clk 0:03:03.3]} 3... a4 {[%clk 0:02:58.7]}
4. e3 {[%clk 0:03:04.6]} 4... e6 {[%clk 0:02:59.2]} 5. Be2 {[%clk 0:03:05.9]}
5... axb3 {[%clk 0:02:42]} 6. axb3 {[%clk 0:03:05.5]} 6... Rxa1 {[%clk
0:02:43.9]} 7. Bxa1 {[%clk 0:03:06.9]} 7... b6 {[%clk 0:02:43.6]} 8. O-O {[%clk
0:03:07.9]} 8... Bb7 {[%clk 0:02:44.8]} 9. c4 {[%clk 0:03:08.2]} 9... Be7 {[%clk
0:02:45.7]} 10. Nc3 {[%clk 0:03:09.1]} 10... O-O {[%clk 0:02:45.7]} 11. d4
{[%clk 0:03:09.3]} 11... d6 {[%clk 0:02:45.5]} 12. Qc2 {[%clk 0:03:08.5]} 12...
Nc6 {[%clk 0:02:44.3]} 13. Bb2 {[%clk 0:03:06.4]} 13... Nb4 {[%clk 0:02:44.2]}
14. Qd2 {[%clk 0:03:07.4]} 14... c5 {[%clk 0:02:45.1]} 15. Ra1 {[%clk 0:03:07]}
15... Qd7 {[%clk 0:02:24.4]} 16. Nb5 {[%clk 0:02:46.2]} 16... Ra8 {[%clk
0:02:17.6]} 17. Qd1 {[%clk 0:02:44.6]} 17... Bc6 {[%clk 0:02:08.9]} 18. Rxa8+
{[%clk 0:02:41.4]} 18... Bxa8 {[%clk 0:02:08.7]} 19. Qa1 {[%clk 0:02:36.9]}
19... Bc6 {[%clk 0:02:07.5]} 20. Bc3 {[%clk 0:01:44.5]} 20... Ne4 {[%clk
0:01:49.3]} 21. Bb2 {[%clk 0:01:06.2]} 21... f6 {[%clk 0:01:25.9]} 22. Ne1
{[%clk 0:01:04.1]} 22... Bf8 {[%clk 0:01:13.5]} 23. Nd3 {[%clk 0:01:04.4]} 23...
Nxd3 {[%clk 0:01:04.5]} 24. Bxd3 {[%clk 0:01:06.3]} 24... f5 {[%clk 0:01:02.5]}
25. f3 {[%clk 0:01:04.1]} 25... Nf6 {[%clk 0:00:59]} 26. Kf2 {[%clk 0:00:40.1]}
26... Qf7 {[%clk 0:00:52.4]} 27. h3 {[%clk 0:00:26.5]} 27... Ne4+ {[%clk
0:00:50.3]} 28. Kg1 {[%clk 0:00:23.5]} 28... Ng5 {[%clk 0:00:47.9]} 29. Qf1
{[%clk 0:00:19.5]} 29... Qg6 {[%clk 0:00:45]} 30. Kh1 {[%clk 0:00:18.4]} 30...
Qh5 {[%clk 0:00:39]} 31. Nc3 {[%clk 0:00:16.2]} 31... Be7 {[%clk 0:00:26.6]} 32.
d5 {[%clk 0:00:16]} 32... Bd7 {[%clk 0:00:24.7]} 33. dxe6 {[%clk 0:00:16.5]}
33... Bxe6 {[%clk 0:00:25.5]} 34. Nd5 {[%clk 0:00:17.9]} 34... Bxd5 {[%clk
0:00:26.4]} 35. cxd5 {[%clk 0:00:19.6]} 35... Qf7 {[%clk 0:00:22.7]} 36. Bc4
{[%clk 0:00:18.8]} 36... Bf6 {[%clk 0:00:23.1]} 37. Qa1 {[%clk 0:00:17.4]} 37...
Bxb2 {[%clk 0:00:22.9]} 38. Qxb2 {[%clk 0:00:18.7]} 38... Qe7 {[%clk 0:00:21.4]}
39. Qa3 {[%clk 0:00:13]} 39... Qxe3 {[%clk 0:00:18.7]} 40. Qa8+ {[%clk
0:00:13.7]} 40... Kf7 {[%clk 0:00:19.3]} 41. Qc8 {[%clk 0:00:10.4]} 41... Qe1+
{[%clk 0:00:18.6]} 42. Kh2 {[%clk 0:00:11.1]} 42... Qe5+ {[%clk 0:00:18.8]} 43.
Kh1 {[%clk 0:00:10]} 43... Qe1+ {[%clk 0:00:18.5]} 44. Kh2 {[%clk 0:00:11.3]}
44... Kg6 {[%clk 0:00:16.2]} 45. Bb5 {[%clk 0:00:09.7]} 45... Qe5+ {[%clk
0:00:13]} 46. Kh1 {[%clk 0:00:11.2]} 46... Kh6 {[%clk 0:00:10.9]} 47. Qd8 {[%clk
0:00:09.1]} 47... Qe1+ {[%clk 0:00:11.1]} 48. Kh2 {[%clk 0:00:10]} 48... Qe5+
{[%clk 0:00:11.9]} 49. Kh1 {[%clk 0:00:11.3]} 49... Qa1+ {[%clk 0:00:11.6]} 50.
Kh2 {[%clk 0:00:12.2]} 50... Qe5+ {[%clk 0:00:12.3]} 51. Kh1 {[%clk 0:00:13.7]}
51... f4 {[%clk 0:00:13.1]} 52. Qf8 {[%clk 0:00:08]} 52... Qe1+ {[%clk
0:00:13.2]} 53. Kh2 {[%clk 0:00:09]} 53... Qg3+ {[%clk 0:00:14]} 54. Kh1 {[%clk
0:00:10.5]} 54... Qe1+ {[%clk 0:00:13]} 55. Kh2 {[%clk 0:00:11.9]} 55... Qg3+
{[%clk 0:00:11.8]} 56. Kh1 {[%clk 0:00:13.4]} 56... Qe1+ {[%clk 0:00:09.2]} 57.
Kh2 {[%clk 0:00:14.8]} 57... Qg3+ {[%clk 0:00:07.6]} 58. Kh1 {[%clk 0:00:16.2]}
58... Qe1+ {[%clk 0:00:07.2]} 59. Kh2 {[%clk 0:00:17.6]} 59... Qb4 {[%clk
0:00:06.7]} 60. Qxd6+ {[%clk 0:00:17.1]} 60... g6 {[%clk 0:00:06.3]} 61. Qf8+
{[%clk 0:00:14.6]} 61... Kh5 {[%clk 0:00:05.2]} 62. Bd7 {[%clk 0:00:13.4]} 62...
Nxf3+ {[%clk 0:00:02.5]} 63. gxf3 {[%clk 0:00:14.7]} 63... Qd2+ {[%clk
0:00:02.8]} 64. Kg1 {[%clk 0:00:16.1]} 64... Qe1+ {[%clk 0:00:03.7]} 65. Kg2
{[%clk 0:00:17.6]} 65... Qe2+ {[%clk 0:00:04.3]} 66. Kg1 {[%clk 0:00:19.1]}
66... Qe1+ {[%clk 0:00:05.6]} 67. Kg2 {[%clk 0:00:20.6]} 67... Qe2+ {[%clk
0:00:06.6]} 68. Kg1 {[%clk 0:00:22.1]} 68... Qe1+ {[%clk 0:00:08]} 69. Kg2
{[%clk 0:00:23.7]} 69... Qe2+ {[%clk 0:00:08.4]} 70. Kg1 {[%clk 0:00:25.2]}
70... Qe1+ {[%clk 0:00:07.5]} 71. Kg2 {[%clk 0:00:26.7]} 71... Qe2+ {[%clk
0:00:06]} 72. Kg1 {[%clk 0:00:28.2]} 72... Qe1+ {[%clk 0:00:06.6]} 1/2-1/2

[Event "*** Qualifier 1: Titled Tuesday 3|2 Blitz"]
[Site "Chess.com"]
[Date "2017.04.04"]
[Round "7"]
[White "justantan"]
[Black "FairChess_on_YouTube"]
[Result "0-1"]
[WhiteElo "2158"]
[BlackElo "2715"]
[TimeControl "180+2"]
[EndTime "14:42:52 PDT"]
[Termination "FairChess_on_YouTube won by resignation"]

1. e4 {[%clk 0:03:02]} 1... c6 {[%clk 0:03:00.4]} 2. d4 {[%clk 0:03:02.5]} 2...
d5 {[%clk 0:03:02.3]} 3. exd5 {[%clk 0:03:03.9]} 3... cxd5 {[%clk 0:03:03.1]} 4.
c4 {[%clk 0:03:05.4]} 4... Nf6 {[%clk 0:03:03.7]} 5. Nc3 {[%clk 0:03:06.3]} 5...
Nc6 {[%clk 0:03:03.4]} 6. Nf3 {[%clk 0:03:06.8]} 6... e6 {[%clk 0:03:03.2]} 7.
Bd3 {[%clk 0:02:49]} 7... Be7 {[%clk 0:02:53.1]} 8. cxd5 {[%clk 0:02:45.4]} 8...
Nxd5 {[%clk 0:02:53]} 9. O-O {[%clk 0:02:46.6]} 9... O-O {[%clk 0:02:53.4]} 10.
Re1 {[%clk 0:02:46.1]} 10... Nf6 {[%clk 0:02:50.6]} 11. a3 {[%clk 0:02:40.7]}
11... b6 {[%clk 0:02:50.9]} 12. Bc2 {[%clk 0:02:32.1]} 12... Bb7 {[%clk
0:02:47.6]} 13. Qd3 {[%clk 0:02:32.7]} 13... g6 {[%clk 0:02:46]} 14. Bh6 {[%clk
0:02:32.3]} 14... Re8 {[%clk 0:02:47]} 15. Rad1 {[%clk 0:02:28.9]} 15... Rc8
{[%clk 0:02:43.6]} 16. Bb3 {[%clk 0:02:15.9]} 16... Na5 {[%clk 0:02:41.9]} 17.
Ba2 {[%clk 0:02:16.7]} 17... Nd5 {[%clk 0:02:39.5]} 18. Ne5 {[%clk 0:02:00.7]}
18... Bf6 {[%clk 0:02:32.4]} 19. Ne4 {[%clk 0:01:53.9]} 19... Bh8 {[%clk
0:02:13.3]} 20. Ng5 {[%clk 0:01:22.1]} 20... Rc7 {[%clk 0:02:04.1]} 21. Qg3
{[%clk 0:00:56]} 21... Nc6 {[%clk 0:01:41.1]} 22. Bb1 {[%clk 0:00:53.6]} 22...
Bg7 {[%clk 0:01:19.3]} 23. Bxg7 {[%clk 0:00:26.4]} 23... Kxg7 {[%clk 0:01:21.2]}
24. Ngxf7 {[%clk 0:00:26.9]} 24... Rxf7 {[%clk 0:01:19.9]} 25. Bxg6 {[%clk
0:00:27.5]} 25... Nxe5 {[%clk 0:01:16.6]} 26. Bxf7+ {[%clk 0:00:20.6]} 26...
Kxf7 {[%clk 0:01:18]} 27. Qxe5 {[%clk 0:00:20.5]} 27... Qf6 {[%clk 0:01:15.4]}
28. Qh5+ {[%clk 0:00:10]} 28... Qg6 {[%clk 0:01:13.6]} 29. Qxg6+ {[%clk
0:00:11.4]} 29... hxg6 {[%clk 0:01:14.1]} 30. Rc1 {[%clk 0:00:12.6]} 30... Re7
{[%clk 0:01:11.1]} 31. f3 {[%clk 0:00:13.4]} 31... Nf4 {[%clk 0:01:10.7]} 32.
Re3 {[%clk 0:00:13]} 32... g5 {[%clk 0:01:11.6]} 33. g3 {[%clk 0:00:12.5]} 33...
Nd5 {[%clk 0:01:07.3]} 34. Re5 {[%clk 0:00:13.8]} 34... Kf6 {[%clk 0:01:08.7]}
35. Kf2 {[%clk 0:00:13.5]} 35... Rh7 {[%clk 0:01:09.6]} 36. Kg2 {[%clk
0:00:14.2]} 36... a5 {[%clk 0:01:10.4]} 37. Rce1 {[%clk 0:00:14.8]} 37... Nc7
{[%clk 0:01:07.8]} 38. g4 {[%clk 0:00:14.2]} 38... Bd5 {[%clk 0:01:05.4]} 39.
Kg3 {[%clk 0:00:14.8]} 39... Nb5 {[%clk 0:01:07]} 40. Rf1 {[%clk 0:00:13]} 40...
Nxd4 {[%clk 0:01:07.5]} 41. Re3 {[%clk 0:00:12.5]} 41... e5 {[%clk 0:01:06.4]}
42. Rfe1 {[%clk 0:00:11.1]} 42... Re7 {[%clk 0:00:56.6]} 43. Rf1 {[%clk
0:00:11.9]} 43... Ne6 {[%clk 0:00:54.1]} 44. h4 {[%clk 0:00:12.7]} 44... gxh4+
{[%clk 0:00:55]} 45. Kxh4 {[%clk 0:00:14.6]} 45... Nf4 {[%clk 0:00:53.5]} 46.
Kg3 {[%clk 0:00:13.7]} 46... Rh7 {[%clk 0:00:55]} 47. Rd1 {[%clk 0:00:12.7]}
47... Rh3+ {[%clk 0:00:53.2]} 48. Kf2 {[%clk 0:00:14.1]} 48... Rh2+ {[%clk
0:00:54.5]} 49. Kg3 {[%clk 0:00:14.4]} 49... Rg2+ {[%clk 0:00:51.3]} 50. Kh4
{[%clk 0:00:15.9]} 50... Rxb2 {[%clk 0:00:51.4]} 51. Kg3 {[%clk 0:00:09.5]}
51... Rg2+ {[%clk 0:00:43.3]} 52. Kh4 {[%clk 0:00:10.6]} 52... Rh2+ {[%clk
0:00:44]} 53. Kg3 {[%clk 0:00:12]} 53... Rh3+ {[%clk 0:00:44.2]} 54. Kf2 {[%clk
0:00:13.6]} 54... b5 {[%clk 0:00:43.5]} 55. Rb1 {[%clk 0:00:12.2]} 55... Bc4
{[%clk 0:00:39.6]} 56. Rd1 {[%clk 0:00:12.1]} 56... Bd5 {[%clk 0:00:27.2]} 57.
Rc1 {[%clk 0:00:11.4]} 57... b4 {[%clk 0:00:22.1]} 58. axb4 {[%clk 0:00:12.3]}
58... axb4 {[%clk 0:00:24]} 59. Rc5 {[%clk 0:00:13.4]} 59... b3 {[%clk
0:00:24.3]} 60. Rb5 {[%clk 0:00:14.7]} 60... Bc4 {[%clk 0:00:19.3]} 61. Rb4
{[%clk 0:00:14.2]} 61... Nd3+ {[%clk 0:00:18.6]} 62. Rxd3 {[%clk 0:00:15.6]}
62... Bxd3 {[%clk 0:00:20.5]} 63. Rxb3 {[%clk 0:00:17.5]} 63... Bc4 {[%clk
0:00:20.5]} 64. Rc3 {[%clk 0:00:18]} 64... Bd5 {[%clk 0:00:20.9]} 65. Re3 {[%clk
0:00:19.1]} 65... Bc6 {[%clk 0:00:16.1]} 66. Rc3 {[%clk 0:00:16.3]} 66... Bd5
{[%clk 0:00:16.4]} 67. Re3 {[%clk 0:00:17.9]} 67... Rh1 {[%clk 0:00:16.8]} 68.
Kg2 {[%clk 0:00:16.5]} 68... Rb1 {[%clk 0:00:16.2]} 69. Kg3 {[%clk 0:00:18.1]}
69... Rb3 {[%clk 0:00:13.9]} 70. Kf2 {[%clk 0:00:07.9]} 70... Rxe3 {[%clk
0:00:13.9]} 71. Kxe3 {[%clk 0:00:09.8]} 71... Kg5 {[%clk 0:00:15.3]} 72. Kf2
{[%clk 0:00:08.6]} 72... Kf4 {[%clk 0:00:16.1]} 73. g5 {[%clk 0:00:10.5]} 73...
Kxg5 {[%clk 0:00:16.6]} 74. Kg3 {[%clk 0:00:11.4]} 74... Kf5 {[%clk 0:00:17.5]}
0-1